bitfinex/quotes_SOLUSD_20241113
["timestamp","ask_amount","ask_price","bid_price","bid_amount"]
[1731517857177,5.3079933,219.98,219.76,23.902374]
[1731517859072,35.57328328,219.96,219.75,13.1858]
[1731517859270,55.57328328,219.97,219.75,13.1858]
[1731517859479,55.57328328,219.97,219.76,0.12549]
[1731517859783,20.0,219.91,219.75,13.1858]
[1731517860472,20.0,219.93,219.75,13.1858]
[1731517860784,55.57328328,219.93,219.76,0.12549]
[1731517861085,20.0,219.93,219.76,0.12549]
[1731517861386,35.57328328,219.99,219.76,23.902374]
[1731517861563,84.21645455,220.0,219.76,23.902374]
[1731517861768,84.21645455,220.0,219.76,5.88651346]
[1731517861975,35.57328328,219.97,219.76,0.12549]
[1731517862277,53.18857127,220.0,219.76,0.12549]
[1731517862477,48.64317127,220.0,219.76,23.902374]
[1731517863161,48.64317127,220.0,219.75,13.1858]
[1731517863162,48.64317127,220.0,219.78,23.902374]
[1731517863368,48.64317127,220.0,219.8,23.902374]
[1731517863566,48.64317127,220.0,219.82,23.902374]
[1731517863767,48.64317127,220.0,219.84,23.902374]
[1731517863988,48.64317127,220.0,219.86,23.776884]
[1731517864197,48.64317127,220.0,219.89,23.776884]
[1731517864389,48.64317127,220.0,219.93,4.544]
[1731517864600,48.64317127,220.0,219.93,5.45296504]
[1731517864779,48.64317127,220.0,219.93,0.90896504]
[1731517865180,48.64317127,220.0,219.9,23.776884]
[1731517865481,48.64317127,220.0,219.91,0.90904936]
[1731517866389,48.64317127,220.0,219.88,13.0746]
[1731517867206,48.64317127,220.0,219.89,0.12549]
[1731517867503,48.64317127,220.0,219.88,13.0746]
[1731517867672,48.64317127,220.0,219.89,0.12549]
[1731517867874,20.0,219.97,219.79,33.1938]
[1731517868703,55.57328328,219.97,219.79,33.1938]
[1731517868998,5.3079933,219.98,219.79,33.1938]
[1731517869191,20.0,219.97,219.79,33.1938]
[1731517869499,20.0,219.97,219.8,0.12549]
[1731517869695,55.57328328,219.97,219.79,33.1938]
[1731517869998,20.0,219.97,219.79,33.1938]
[1731517870203,20.0,219.97,219.8,0.12549]
[1731517871098,55.57328328,219.97,219.8,0.12549]
[1731517871304,20.0,219.95,219.79,33.1938]
[1731517872101,23.776884,219.96,219.79,33.1938]
[1731517872486,5.3079933,219.98,219.79,33.1938]
[1731517872684,5.3079933,219.98,219.8,0.12549]
[1731517873482,9.8539933,219.98,219.8,0.12549]
[1731517873683,5.3079933,219.98,219.8,0.12549]
[1731517873993,20.0,219.97,219.8,0.12549]
[1731517876202,23.776884,219.96,219.79,33.1938]
[1731517876381,20.0,219.93,219.79,33.1938]
[1731517876782,23.776884,219.92,219.78,13.1644]
[1731517877084,20.0,219.91,219.78,13.1644]
[1731517877499,5.3079933,219.98,219.79,0.12549]
[1731517878500,5.3079933,219.98,219.79,4.66949]
[1731517878801,5.3079933,219.98,219.79,0.12549]
[1731517879207,55.57328328,219.97,219.78,13.1644]
[1731517879509,20.0,219.95,219.78,13.1644]
[1731517879687,20.0,219.93,219.78,13.1644]
[1731517880588,20.0,219.94,219.78,13.1644]
[1731517880897,20.0,219.92,219.78,13.1644]
[1731517881506,43.776884,219.96,219.79,0.12549]
[1731517881702,43.776884,219.96,219.78,13.1644]
[1731517881703,43.776884,219.94,219.78,13.1644]
[1731517882007,20.0,219.94,219.78,13.1644]
[1731517882189,11.60375035,219.97,219.78,13.1644]
[1731517882190,7.05765035,219.97,219.78,13.1644]
[1731517882389,20.0,219.95,219.79,0.12549]
[1731517882585,20.0,219.97,219.79,0.12549]
[1731517882787,5.3079933,219.98,219.79,0.12549]
[1731517885588,20.0,219.97,219.79,0.12549]
[1731517886493,20.0,219.95,219.79,0.12549]
[1731517886701,20.0,219.95,219.78,13.1644]
[1731517887211,20.0,219.97,219.79,0.12549]
[1731517889608,23.776884,219.94,219.78,13.1644]
[1731517889813,20.0,219.91,219.78,13.1644]
[1731517890188,14.06671745,220.53,219.78,13.1644]
[1731517890189,5.3079933,219.98,219.78,13.1644]
[1731517890395,20.0,219.93,219.78,13.1644]
[1731517892392,5.3079933,219.98,219.78,13.1644]
[1731517892597,43.776884,219.97,219.78,13.1644]
[1731517892990,20.0,219.94,219.78,13.1644]
[1731517893307,20.0,219.92,219.78,13.1644]
[1731517893608,20.0,219.88,219.71,12.3066]
[1731517894014,23.776884,219.93,219.71,12.3066]
[1731517894307,20.0,219.92,219.72,4.544]
[1731517894508,41.79766121,219.9,219.72,4.544]
[1731517894691,45.57454521,219.85,219.71,12.3066]
[1731517894889,43.776884,219.78,219.61,12.396]
[1731517895401,21.79766121,219.69,219.61,12.396]
[1731517895589,0.1,219.65,219.52,3.24]
[1731517895790,20.0,219.57,219.52,3.24]
[1731517895990,21.79766121,219.61,219.52,3.24]
[1731517896303,20.0,219.61,219.52,3.24]
[1731517896694,21.79766121,219.59,219.52,3.24]
[1731517896906,20.0,219.59,219.52,3.24]
[1731517897687,20.0,219.6,219.52,3.24]
[1731517897887,20.0,219.53,219.39,4.544]
[1731517898088,20.0,219.52,219.3,1.0]
[1731517898288,35.54143643,219.6,219.3,71.1]
[1731517898510,20.0,219.59,219.31,4.544]
[1731517898886,55.54143643,219.61,219.31,4.544]
[1731517899089,55.54143643,219.57,219.31,4.544]
[1731517899309,20.0,219.55,219.31,4.544]
[1731517899894,20.0,219.59,219.31,4.544]
[1731517900605,55.54143643,219.59,219.33,4.544]
[1731517900787,20.0,219.59,219.33,11.49498882]
[1731517901212,35.54143643,219.56,219.3,1.0]
[1731517901391,35.54143643,219.5,219.3,1.0]
[1731517901709,79.31832043,219.47,219.46,37.98928361]
[1731517902010,32.5359,219.59,219.46,37.98928361]
[1731517902011,35.54143643,219.6,219.46,37.98928361]
[1731517902189,12.8284,219.69,219.46,37.98928361]
[1731517902386,0.1,219.71,219.46,37.98928361]
[1731517902592,4.6515,219.71,219.46,37.98928361]
[1731517902813,4.6515,219.71,219.48,0.12549]
[1731517903006,0.1,219.69,219.48,0.12549]
[1731517903207,35.54143643,219.66,219.48,0.12549]
[1731517903508,23.4122,219.76,219.48,0.12549]
[1731517903509,35.54143643,219.74,219.48,0.12549]
[1731517903690,35.54143643,219.73,219.5,0.12549]
[1731517903890,35.54143643,219.72,219.5,0.12549]
[1731517904086,35.54143643,219.7,219.5,0.12549]
[1731517904298,35.54143643,219.66,219.5,0.12549]
[1731517904496,35.54143643,219.65,219.5,0.12549]
[1731517904709,35.54143643,219.66,219.5,0.12549]
[1731517905337,35.54143643,219.67,219.5,0.12549]
[1731517905609,20.0,219.66,219.5,0.12549]
[1731517906112,20.0,219.67,219.5,0.12549]
[1731517906497,20.0,219.68,219.5,0.12549]
[1731517906810,0.1,219.84,219.52,0.12549]
[1731517907109,0.77720409,219.76,219.54,23.776884]
[1731517907313,47.78583643,219.88,219.57,94.002374]
[1731517907519,22.81286942,220.01,219.56,32.43149508]
[1731517907520,0.77676298,219.92,219.61,24.002374]
[1731517907811,35.54143643,219.96,219.66,23.776884]
[1731517907989,35.54143643,219.96,219.68,23.776884]
[1731517908190,30.427335,219.97,219.69,0.12549]
[1731517908391,45.70071136,219.98,219.71,0.12549]
[1731517908617,35.64143643,219.95,219.71,0.12549]
[1731517908812,35.54143643,219.94,219.71,0.12549]
[1731517909026,35.54143643,219.95,219.71,0.12549]
[1731517909195,35.54143643,219.94,219.71,0.12549]
[1731517909394,0.1,219.93,219.71,0.12549]
[1731517909695,35.64143643,219.93,219.71,0.12549]
[1731517909897,35.54143643,219.92,219.71,0.12549]
[1731517910214,20.0,219.87,219.7,30.3043]
[1731517910590,35.54143643,219.87,219.7,30.3043]
[1731517910912,20.0,219.88,219.7,30.3043]
[1731517911088,20.0,219.88,219.71,0.12549]
[1731517911289,20.0,219.88,219.7,30.3043]
[1731517911290,20.0,219.86,219.7,30.3043]
[1731517911912,20.0,219.89,219.71,23.902374]
[1731517912107,20.0,219.9,219.71,23.902374]
[1731517912491,20.0,219.85,219.7,30.3043]
[1731517913107,24.5487,219.85,219.58,12.3871]
[1731517913308,20.0,219.81,219.59,30.1463]
[1731517913911,55.54143643,219.81,219.59,30.1463]
[1731517914516,4.5493,219.82,219.59,30.1463]
[1731517914697,40.09073643,219.82,219.59,30.1463]
[1731517915020,4.5493,219.82,219.59,30.1463]
[1731517915216,20.0,219.81,219.6,23.776884]
[1731517915431,0.12549,219.79,219.58,12.3871]
[1731517915594,35.54143643,219.63,219.4,31.4319]
[1731517915799,63.64280541,219.62,219.46,37.98928361]
[1731517916097,20.0,219.62,219.46,37.98928361]
[1731517916301,20.0,219.67,219.46,37.98928361]
[1731517916702,20.0,219.66,219.46,37.98928361]
[1731517916904,35.54143643,219.66,219.46,37.98928361]
[1731517917215,20.0,219.65,219.47,0.12549]
[1731517917418,20.0,219.65,219.46,37.98928361]
[1731517918016,35.54143643,219.65,219.46,37.98928361]
[1731517918315,20.0,219.64,219.46,37.98928361]
[1731517919006,20.0,219.64,219.48,0.12549]
[1731517919318,16.17667326,219.63,219.46,37.98928361]
[1731517919516,20.0,219.62,219.46,37.98928361]
[1731517920002,16.17667326,219.63,219.47,0.12549]
[1731517920207,35.54143643,219.6,219.46,37.98928361]
[1731517920511,18.206422,219.62,219.46,37.98928361]
[1731517920820,35.54143643,219.65,219.46,37.98928361]
[1731517921010,40.09423643,219.65,219.47,0.12549]
[1731517921207,45.3624,220.45,219.46,37.98928361]
[1731517921208,35.54143643,219.62,219.46,37.98928361]
[1731517921414,24.5531,219.63,219.46,37.98928361]
[1731517922116,55.54143643,219.61,219.46,37.98928361]
[1731517922328,20.0,219.61,219.47,0.12549]
[1731517922623,42.66806528,219.64,219.47,23.902374]
[1731517922810,35.54143643,219.59,219.46,37.98928361]
[1731517923121,35.54143643,219.57,219.46,37.98928361]
[1731517923622,20.0,219.55,219.46,37.98928361]
[1731517924126,20.0,219.58,219.46,37.98928361]
[1731517924422,25.51146109,219.65,219.46,37.98928361]
[1731517924423,25.31146109,219.65,219.47,4.66949]
[1731517924731,65.40569752,219.65,219.47,4.66949]
[1731517925105,35.54143643,219.6,219.47,0.12549]
[1731517925304,35.54143643,219.62,219.47,0.12549]
[1731517925510,40.09443643,219.64,219.47,0.12549]
[1731517925712,18.206309,219.65,219.49,12.9529]
[1731517926000,13.3182,219.86,219.5,23.776884]
[1731517926001,35.54143643,219.81,219.5,23.776884]
[1731517926206,60.77614404,219.81,219.55,4.66949]
[1731517926520,35.54143643,219.79,219.59,4.544]
[1731517929229,20.0,219.87,219.65,4.544]
[1731517929524,20.0,219.87,219.6,23.776884]
[1731517929525,35.54143643,219.83,219.61,0.12549]
[1731517929719,35.54143643,219.85,219.61,0.12549]
[1731517930203,35.54143643,219.83,219.64,23.776884]
[1731517930606,20.0,219.83,219.64,23.776884]
[1731517930837,35.54143643,219.82,219.65,0.12549]
[1731517931008,35.54143643,219.79,219.59,45.2758]
[1731517931209,20.0,219.78,219.6,4.544]
[1731517931428,55.54143643,219.78,219.6,4.544]
[1731517931933,20.0,219.76,219.59,45.2758]
[1731517932631,35.54143643,219.81,219.59,45.2758]
[1731517932928,20.0,219.78,219.59,45.2758]
[1731517933308,20.0,219.78,219.6,23.776884]
[1731517933621,55.54143643,219.78,219.6,23.776884]
[1731517933926,55.54143643,219.78,219.59,45.2758]
[1731517933927,35.54143643,219.69,219.59,45.2758]
[1731517934130,35.54143643,219.67,219.59,45.2758]
[1731517934309,35.54143643,219.61,219.51,44.1621]
[1731517934717,35.54143643,219.62,219.51,44.1621]
[1731517934915,20.0,219.66,219.51,44.1621]
[1731517934916,35.54143643,219.63,219.51,44.1621]
[1731517935122,35.54143643,219.67,219.51,44.1621]
[1731517935338,55.54143643,219.67,219.52,0.12549]
[1731517935522,35.54143643,219.66,219.51,44.1621]
[1731517935919,20.0,219.63,219.52,0.12549]
[1731517936231,11.46646328,219.7,219.51,44.1621]
[1731517936232,55.54143643,219.61,219.51,44.1621]
[1731517936840,35.54143643,219.67,219.51,44.1621]
[1731517936841,35.54143643,219.62,219.51,44.1621]
[1731517937016,35.54143643,219.63,219.51,44.1621]
[1731517937331,20.0,219.62,219.51,44.1621]
[1731517937728,20.0,219.63,219.51,44.1621]
[1731517937922,35.54143643,219.67,219.52,23.776884]
[1731517938107,4.5508,219.74,219.53,0.12549]
[1731517938431,35.54143643,219.68,219.53,0.12549]
[1731517938620,6.89204814,219.74,219.53,0.12549]
[1731517938824,4.5479,219.88,219.53,0.21178508]
[1731517939029,4.5479,219.88,219.57,0.08629508]
[1731517939231,0.1,219.87,219.55,23.902374]
[1731517939427,0.1,219.87,219.54,0.1]
[1731517939728,35.54143643,219.78,219.54,0.21178508]
[1731517939934,35.54143643,219.77,219.54,0.12549]
[1731517940138,35.54143643,219.79,219.53,0.18629508]
[1731517940313,35.54143643,219.79,219.54,0.22549]
[1731517940506,35.54143643,219.81,219.56,0.08629508]
[1731517940709,35.54143643,219.81,219.55,0.1]
[1731517940929,4.6481,219.87,219.56,0.08629508]
[1731517940930,35.54143643,219.84,219.56,0.08629508]
[1731517941138,40.08813643,219.94,219.66,23.902374]
[1731517941426,12.9727,219.99,219.66,23.902374]
[1731517941427,35.54143643,219.95,219.68,23.902374]
[1731517941732,35.54143643,219.93,219.68,23.902374]
[1731517942538,20.0,219.93,219.68,23.902374]
[1731517943037,35.54143643,219.93,219.68,23.902374]
[1731517943215,20.0,219.92,219.68,23.902374]
[1731517944118,1.818238,219.95,219.7,0.21178508]
[1731517944427,5.3079933,219.98,219.73,0.21178508]
[1731517944832,5.3079933,219.98,219.75,0.08629508]
[1731517945134,5.3079933,219.98,219.8,0.08629508]
[1731517945310,5.3079933,219.98,219.82,0.12549]
[1731517945508,5.3079933,219.98,219.82,23.902374]
[1731517946635,20.0,219.97,219.82,23.902374]
[1731517946825,5.3079933,219.98,219.82,23.902374]
[1731517949913,5.3079933,219.98,219.85,0.21178508]
[1731517950229,5.3079933,219.98,219.87,0.12549]
[1731517950419,5.3079933,219.98,219.89,23.902374]
[1731517950622,5.3079933,219.98,219.91,23.902374]
[1731517950925,5.3079933,219.98,219.93,0.12549]
[1731517951444,5.3079933,219.98,219.88,23.776884]
[1731517951619,5.3079933,219.98,219.86,23.776884]
[1731517952015,5.3079933,219.98,219.88,23.776884]
[1731517952430,5.3079933,219.98,219.83,37.79859346]
[1731517952431,5.3079933,219.98,219.89,0.12549]
[1731517952618,5.3079933,219.98,219.83,30.9325]
[1731517952821,55.54143643,219.95,219.81,12.4321]
[1731517953019,5.3079933,219.98,219.81,12.4321]
[1731517954234,5.3079933,219.98,219.82,0.12549]
[1731517954444,20.0,219.97,219.81,12.4321]
[1731517954825,20.0,219.97,219.82,0.12549]
[1731517955321,55.54143643,219.95,219.81,12.4321]
[1731517955520,20.0,219.93,219.81,12.4321]
[1731517956148,35.54143643,219.93,219.81,12.4321]
[1731517956324,20.0,219.97,219.81,12.4321]
[1731517956647,20.0,219.93,219.81,12.4321]
[1731517956955,20.0,219.97,219.74,31.9643]
[1731517956956,35.54143643,219.86,219.74,31.9643]
[1731517957122,20.0,219.85,219.74,31.9643]
[1731517957632,20.0,219.85,219.72,12.2159]
[1731517957937,20.0,219.85,219.73,0.12549]
[1731517958129,20.0,219.89,219.73,0.12549]
[1731517958330,20.0,219.87,219.72,12.2159]
[1731517958637,35.54143643,219.84,219.72,12.2159]
[1731517958833,20.0,219.83,219.72,12.2159]
[1731517959334,20.0,219.88,219.73,0.12549]
[1731517959836,60.08943643,219.88,219.73,0.12549]
[1731517960149,55.54143643,219.88,219.73,0.12549]
[1731517960328,60.08933643,219.88,219.73,0.12549]
[1731517960530,20.0,219.85,219.72,12.2159]
[1731517961244,60.08933643,219.88,219.72,12.2159]
[1731517961539,20.0,219.85,219.72,12.2159]
[1731517962039,20.0,219.83,219.72,12.2159]
[1731517962631,20.0,219.79,219.66,31.3632]
[1731517963441,20.0,219.81,219.66,31.3632]
[1731517963641,7.06373165,219.83,219.66,31.3632]
[1731517963642,20.0,219.82,219.67,0.12549]
[1731517963827,24.5491,219.83,219.67,0.12549]
[1731517964342,35.54143643,219.88,219.67,23.902374]
[1731517964737,35.54143643,219.86,219.67,0.12549]
[1731517964934,35.54143643,219.84,219.67,0.12549]
[1731517965529,20.0,219.83,219.67,0.12549]
[1731517965732,24.5489,219.83,219.67,0.12549]
[1731517996862,21.82679355,219.65,219.53,4.72505003]
[1731518028092,4.5489,219.83,219.61,0.12549]
[1731518029087,4.5489,219.83,219.61,23.902374]
[1731518029887,21.82679355,219.85,219.61,23.902374]
[1731518061319,5.0,220.15,219.97,23.902374]
[1731518061612,5.0,220.2,220.04,0.08629508]
[1731518061806,0.32352941,220.21,219.98,27.21]
[1731518061807,0.32352941,220.21,220.2,0.12549]
[1731518062316,0.32352941,220.21,220.14,9.677]
[1731518062692,0.32352941,220.21,220.15,0.12549]
[1731518067827,0.32352941,220.21,220.15,23.902374]
[1731518068303,0.32352941,220.21,220.15,0.12549]
[1731518068503,0.32352941,220.21,220.15,23.902374]
[1731518070119,0.32352941,220.21,220.15,0.12549]
[1731518070517,0.32352941,220.21,220.14,9.677]
[1731518070719,0.32352941,220.21,220.15,0.12549]
[1731518071414,0.32352941,220.21,220.1,0.12549]
[1731518071609,22.08964545,220.21,220.07,9.677]
[1731518071813,21.76611604,220.19,220.03,16.7785]
[1731518072019,0.32352941,220.21,220.03,16.7785]
[1731518072423,20.32352941,220.21,220.03,16.7785]
[1731518072632,42.08964545,220.21,220.03,16.7785]
[1731518072819,20.32352941,220.21,220.03,16.7785]
[1731518073208,22.08964545,220.21,220.05,28.320884]
[1731518073429,21.76611604,220.2,220.05,28.320884]
[1731518073632,21.76611604,220.15,220.05,4.544]
[1731518074121,4.86462941,220.21,220.05,4.544]
[1731518074122,21.76611604,220.16,220.05,4.544]
[1731518074321,21.76611604,220.16,220.02,4.544]
[1731518074505,20.0,220.16,220.03,0.12549]
[1731518074704,21.76611604,220.13,219.97,16.7785]
[1731518074923,21.76611604,220.14,219.97,16.7785]
[1731518075124,41.76611604,220.14,219.98,0.12549]
[1731518075335,20.0,220.14,219.98,0.12549]
[1731518075507,41.76611604,220.14,219.98,0.12549]
[1731518075826,4.5427,220.13,219.97,16.7785]
[1731518076009,26.30881604,220.13,219.97,15.2785]
[1731518076429,21.76611604,220.12,219.97,15.2785]
[1731518076635,21.76611604,220.12,219.98,0.12549]
[1731518077127,21.76611604,220.12,219.97,15.2785]
[1731518077128,21.76611604,220.06,219.94,9.677]
[1731518077313,21.76611604,220.04,219.85,9.677]
[1731518077514,20.0,220.03,219.85,9.677]
[1731518077821,20.0,220.0,219.85,9.677]
[1731518078027,20.0,220.03,219.85,9.677]
[1731518078220,20.0,220.08,219.85,9.677]
[1731518078410,26.30921604,220.12,219.86,0.12549]
[1731518078411,21.76611604,220.1,219.86,0.12549]
[1731518078612,20.0,220.09,219.86,0.12549]
[1731518078908,20.0,220.09,219.86,35.40399]
[1731518079113,24.5433,220.1,219.86,35.40399]
[1731518079426,13.2871,220.15,219.9,20.12549]
[1731518079626,4.5425,220.14,219.92,0.12549]
[1731518079813,4.5425,220.14,219.94,0.12549]
[1731518080211,30.007,220.16,219.96,43.776884]
[1731518080905,30.007,220.16,219.97,0.12549]
[1731518081113,21.76611604,220.14,219.96,20.0]
[1731518081329,30.007,220.16,219.97,23.902374]
[1731518081624,20.0,220.15,219.97,23.902374]
[1731518082625,21.76611604,220.14,219.96,20.0]
[1731518082818,21.76611604,220.12,219.95,9.677]
[1731518083119,46.30901604,220.13,219.95,9.677]
[1731518083304,21.76611604,220.12,219.95,9.677]
[1731518083509,21.76611604,220.1,219.95,9.677]
[1731518083729,21.76611604,220.12,219.95,9.677]
[1731518083932,20.0,220.11,219.95,9.677]
[1731518084128,46.30931604,220.11,219.95,9.677]
[1731518084329,21.76611604,220.11,219.95,9.677]
[1731518084817,21.76611604,220.08,219.95,9.677]
[1731518085131,21.76611604,220.07,219.88,9.677]
[1731518085453,15.8983,220.15,219.88,9.677]
[1731518085454,21.76611604,220.08,219.88,9.677]
[1731518085940,21.76611604,220.07,219.88,9.677]
[1731518086229,21.76611604,220.08,219.89,23.776884]
[1731518086926,21.76611604,220.08,219.88,9.677]
[1731518086927,21.76611604,220.04,219.88,9.677]
[1731518087136,21.76611604,220.03,219.88,9.677]
[1731518087924,21.76611604,220.02,219.88,9.677]
[1731518088114,21.76611604,219.98,219.83,9.677]
[1731518088515,20.0,219.98,219.84,0.12549]
[1731518088834,20.0,219.98,219.83,9.677]
[1731518089128,20.0,219.99,219.83,9.677]
[1731518089318,21.76611604,219.99,219.83,9.677]
[1731518089523,20.0,219.98,219.83,9.677]
[1731518090211,20.0,219.98,219.84,0.12549]
[1731518091639,20.0,219.99,219.84,0.12549]
[1731518091938,21.76611604,219.99,219.84,0.12549]
[1731518092112,20.0,219.98,219.84,0.12549]
[1731518092438,21.76611604,219.96,219.84,0.12549]
[1731518092642,21.76611604,219.96,219.83,7.681]
[1731518092643,21.76611604,219.93,219.8,15.2785]
[1731518092818,20.0,219.93,219.8,15.2785]
[1731518094135,4.5469,219.93,219.77,7.681]
[1731518094342,21.76611604,219.88,219.75,15.2785]
[1731518094548,21.76611604,219.89,219.75,15.2785]
[1731518094920,21.76611604,219.89,219.76,0.12549]
[1731518095231,21.76611604,219.9,219.75,15.2785]
[1731518095417,4.5469,219.93,219.75,15.2785]
[1731518095418,41.76611604,219.89,219.75,15.2785]
[1731518095615,41.76611604,219.89,219.76,0.12549]
[1731518096019,41.76611604,219.89,219.75,15.2785]
[1731518096240,21.76611604,219.9,219.75,15.2785]
[1731518096436,20.0,219.89,219.76,0.12549]
[1731518096820,21.76611604,219.92,219.76,0.12549]
[1731518097038,4.5466,219.94,219.76,0.12549]
[1731518098115,24.547,219.93,219.76,0.12549]
[1731518098320,26.31311604,219.93,219.76,0.12549]
[1731518098738,21.76611604,219.92,219.76,0.12549]
[1731518098940,20.0,219.91,219.76,0.12549]
[1731518099134,21.76611604,219.92,219.76,0.12549]
[1731518099342,20.1,219.95,219.76,0.12549]
[1731518099343,46.31341604,219.91,219.76,0.12549]
[1731518099838,20.0,219.88,219.75,15.2785]
[1731518100049,20.0,219.88,219.76,0.12549]
[1731518100346,41.76611604,219.9,219.75,15.2785]
[1731518100532,41.76611604,219.9,219.76,0.12549]
[1731518100732,21.76611604,219.88,219.76,0.12549]
[1731518100917,41.76611604,219.83,219.71,7.681]
[1731518101122,21.76611604,219.82,219.71,7.681]
[1731518101529,21.76611604,219.8,219.71,7.681]
[1731518101735,21.76611604,219.78,219.67,15.2785]
[1731518101938,21.76611604,219.77,219.67,15.2785]
[1731518102150,21.76611604,219.78,219.67,15.2785]
[1731518103031,21.76611604,219.77,219.67,15.2785]
[1731518103236,21.76611604,219.8,219.67,15.2785]
[1731518103442,12.454,219.84,219.67,15.2785]
[1731518103443,12.7839,219.9,219.67,15.2785]
[1731518103639,21.76611604,219.87,219.67,15.2785]
[1731518103941,21.76611604,219.86,219.67,15.2785]
[1731518104142,21.76611604,219.88,219.68,0.12549]
[1731518104344,30.2261,219.91,219.68,90.21178508]
[1731518104524,21.76611604,219.94,219.7,20.0]
[1731518104723,12.7839,219.95,219.7,20.0]
[1731518104724,34.55001604,219.95,219.72,0.12549]
[1731518104943,21.76611604,219.93,219.74,20.0]
[1731518105130,19.97795805,219.95,219.77,23.902374]
[1731518105331,41.74407409,219.95,219.77,23.902374]
[1731518105744,30.6239,219.96,219.79,0.12549]
[1731518105947,30.6239,219.96,219.79,23.902374]
[1731518106651,34.53151604,220.0,219.79,23.902374]
[1731518106831,21.76611604,219.99,219.79,23.902374]
[1731518107245,21.76611604,219.98,219.79,23.902374]
[1731518107547,41.52929279,220.0,219.79,23.902374]
[1731518107752,20.0,219.99,219.79,23.902374]
[1731518107930,21.76611604,220.04,219.81,23.902374]
[1731518108126,28.94362901,220.04,219.83,0.12549]
[1731518108325,7.17751297,220.04,219.84,22.9595]
[1731518108523,21.76611604,220.05,219.85,23.902374]
[1731518108727,21.76611604,220.04,219.85,23.902374]
[1731518108942,4.5435,220.09,219.85,23.902374]
[1731518108943,21.76611604,220.05,219.85,23.902374]
[1731518109852,20.0,220.04,219.85,23.902374]
[1731518110029,20.0,220.03,219.85,23.902374]
[1731518110340,21.76611604,220.01,219.85,23.902374]
[1731518110747,4.5447,220.04,219.85,23.902374]
[1731518110748,20.0,220.0,219.85,23.902374]
[1731518111336,21.76611604,220.03,219.85,23.902374]
[1731518111537,20.0,220.02,219.85,23.902374]
[1731518112739,21.76611604,220.05,219.85,23.902374]
[1731518112928,4.5439,220.08,219.85,23.902374]
[1731518112929,21.76611604,220.06,219.85,23.902374]
[1731518113130,41.76611604,220.04,219.86,0.12549]
[1731518113436,20.0,220.04,219.86,0.12549]
[1731518113640,7.12415378,220.09,219.9,0.12549]
[1731518113949,21.76611604,220.13,219.92,23.902374]
[1731518114452,21.76611604,220.08,219.92,23.902374]
[1731518114945,21.76611604,220.07,219.92,23.902374]
[1731518115492,21.76611604,220.08,219.92,23.902374]
[1731518115745,20.0,220.08,219.92,23.902374]
[1731518116355,20.0,220.12,219.94,0.12549]
[1731518116532,20.0,220.12,219.94,23.902374]
[1731518116736,41.76611604,220.12,219.94,23.902374]
[1731518117439,6.98151471,220.13,219.94,23.902374]
[1731518117646,11.67642941,220.21,219.98,23.902374]
[1731518117647,4.5416,220.19,219.98,23.902374]
[1731518117831,26.30771604,220.19,219.98,23.902374]
[1731518118033,21.76611604,220.18,219.98,23.902374]
[1731518118453,21.76611604,220.17,219.98,23.902374]
[1731518118652,21.76611604,220.12,219.98,0.12549]
[1731518118836,21.76611604,220.11,219.98,0.12549]
[1731518119031,21.76611604,220.06,219.97,7.681]
[1731518119464,21.76611604,220.08,219.97,7.681]
[1731518119644,21.76611604,220.12,219.98,0.12549]
[1731518119973,21.76611604,220.14,219.98,0.12549]
[1731518120259,49.24639892,220.21,219.97,7.681]
[1731518120260,0.32352941,220.21,220.0,23.902374]
[1731518120442,0.32352941,220.21,220.02,23.902374]
[1731518120643,0.32352941,220.21,220.09,23.776884]
[1731518121758,0.32352941,220.21,220.1,20.0]